bitfinex-derivatives/quotes_SOLF0:USTF0_20250310
["timestamp","ask_amount","ask_price","bid_price","bid_amount"]
[1741617471282,45.50518947,122.13,122.01,45.50518947]
[1741617471480,3.9728,122.12,122.01,45.50518947]
[1741617471677,45.50518947,122.09,121.98,45.50518947]
[1741617471874,68.58,122.12,121.98,45.50518947]
[1741617472088,68.58,122.12,122.01,45.50518947]
[1741617472283,45.50518947,122.09,121.98,45.50518947]
[1741617472477,0.05938761,122.06,122.04,0.05191284]
[1741617472678,8.1942,122.05,121.96,1.63988192]
[1741617472878,68.49938761,122.06,121.96,1.63988192]
[1741617473079,68.44,122.06,121.96,1.63988192]
[1741617473581,45.50518947,122.05,121.96,1.63988192]
[1741617473992,0.05623799,122.02,121.96,1.63988192]
[1741617474889,113.88518947,122.01,121.89,45.50518947]
[1741617475089,45.50518947,121.98,121.86,45.50518947]
[1741617475295,45.50518947,121.96,121.85,132.84739005]
[1741617475679,0.05807905,121.93,121.91,0.06148373]
[1741617476187,4.1,121.93,121.85,132.84739005]
[1741617476392,0.05352794,121.93,121.91,0.05884034]
[1741617476594,68.28,121.95,121.86,45.50518947]
[1741617476895,68.28,121.95,121.91,0.05810784]
[1741617477187,0.05903406,121.93,121.91,0.05810784]
[1741617477386,0.05903406,121.93,121.82,384.30518947]
[1741617477790,45.50518947,121.94,121.82,384.30518947]
[1741617477987,68.28,121.95,121.86,45.50518947]
[1741617478189,68.28,121.95,121.84,45.50518947]
[1741617478691,0.05195642,121.91,121.88,0.05799139]
[1741617479490,8.2067,121.87,121.8,53.71548947]
[1741617479691,45.50518947,121.9,121.8,53.71548947]
[1741617479692,113.12518947,121.9,121.8,45.50518947]
[1741617479889,113.10518947,121.94,121.82,45.50518947]
[1741617480088,45.50518947,121.92,121.8,45.50518947]
[1741617480290,45.50518947,121.85,121.76,167.49923986]
[1741617480591,45.50518947,121.83,121.76,167.49923986]
[1741617480789,0.05340073,121.82,121.79,0.05412781]
[1741617480979,8.2108,121.8,121.79,0.05412781]
[1741617481182,0.05340073,121.82,121.79,0.05412781]
[1741617481396,45.50518947,121.81,121.76,167.49923986]
[1741617481585,4.15340073,121.82,121.76,160.93323986]
[1741617481586,8.2128,121.77,121.76,160.93323986]
[1741617481784,0.05340073,121.82,121.76,87.88666796]
[1741617482089,4.1644,121.87,121.81,8.2101]
[1741617482290,45.50518947,121.96,121.83,45.50518947]
[1741617482488,45.50518947,121.96,121.84,62.0]
[1741617482790,0.05678436,121.91,121.88,0.057584]
[1741617483188,71.8,121.91,121.79,383.82518947]
[1741617483384,113.20518947,121.95,121.8,45.50518947]
[1741617483686,0.05903943,121.91,121.88,0.05693648]
[1741617484087,8.2047,121.89,121.88,0.05693648]
[1741617484489,4.1,121.89,121.79,327.30603575]
[1741617484685,56.68603575,121.87,121.77,4.1472]
[1741617484892,67.86,121.86,121.77,4.1472]
[1741617485090,67.86,121.86,121.83,0.06121748]
[1741617485293,67.86,121.86,121.75,60.87803575]
[1741617485592,0.06128105,121.83,121.77,56.68603575]
[1741617485789,0.06128105,121.83,121.79,0.05239646]
[1741617486194,67.78,121.86,121.81,8.21]
[1741617486394,0.05630443,121.82,121.79,56.73843221]
[1741617486593,4.43e-06,121.82,121.81,56.68603575]
[1741617486794,71.9357,121.91,121.81,56.74608876]
[1741617486996,128.62173575,121.91,121.82,4.0264]
[1741617487302,71.9357,121.91,121.81,56.68603575]
[1741617487703,71.9357,121.91,121.83,56.68603575]
[1741617487899,0.05397671,121.87,121.85,0.05917116]
[1741617488705,12.3776,121.96,121.86,113.3720715]
[1741617488998,67.56,122.01,121.89,56.68603575]
[1741617489190,56.68603575,121.98,121.87,56.68603575]
[1741617489392,56.68603575,121.96,121.85,4.0264]
[1741617489690,67.58,121.95,121.85,60.71243575]
[1741617489895,0.05428993,121.92,121.89,0.0555144]
[1741617490504,0.05428993,121.92,121.9,8.2041]
[1741617490805,0.05428993,121.92,121.89,0.0555144]
[1741617491103,0.05428993,121.92,121.91,8.2034]
[1741617491314,56.68603575,122.07,121.91,56.68603575]
[1741617491601,56.68603575,122.07,122.02,8.1955]
[1741617491602,8.1929,122.07,122.02,8.1955]
[1741617491795,12.6421,122.08,121.98,67.6]
[1741617491995,8.3361,122.08,122.01,56.68603575]
[1741617492202,4.306,122.13,122.01,56.68603575]
[1741617492402,0.05925151,122.06,122.04,56.68603575]
[1741617492702,4.306,122.13,122.03,0.0613867]
[1741617492703,67.62,122.12,122.03,0.0613867]
[1741617492899,4.306,122.14,121.99,60.96853575]
[1741617493101,4.3215,122.15,122.07,56.68603575]
[1741617493302,60.70063575,122.2,122.07,56.68603575]
[1741617493597,128.36063575,122.2,122.08,4.1332]
[1741617493803,0.05377083,122.15,122.12,0.06070828]
[1741617494195,0.05377083,122.15,122.08,60.81923575]
[1741617494601,124.33980658,122.15,122.12,6.158e-05]
[1741617494804,56.68603575,122.13,122.0,4.1332]
[1741617495004,270.6,122.14,122.03,56.68603575]
[1741617495197,270.6,122.14,122.03,62.0]
[1741617495397,56.68603575,122.1,122.0,4.1332]
[1741617495601,56.68603575,122.08,122.0,4.1332]
[1741617495798,68.18,122.07,121.98,56.68603575]
[1741617496104,0.06114207,122.05,121.95,60.88093575]
[1741617496316,56.68603575,122.04,121.95,4.1949]
[1741617496608,56.68603575,122.02,121.92,133.25978992]
[1741617496812,8.1987,121.98,121.92,141.46188992]
[1741617497001,68.12,122.01,121.92,133.25978992]
[1741617497198,72.3455,122.05,121.93,56.68603575]
[1741617497395,72.3455,122.05,121.92,133.25978992]
[1741617497396,56.68603575,122.04,121.92,133.25978992]
[1741617497705,0.0539291,121.98,121.95,0.05321688]
[1741617498104,56.68603575,122.03,121.92,133.25978992]
[1741617498505,0.06055574,121.98,121.95,0.05362271]
[1741617498903,0.06055574,121.98,121.92,133.25978992]
[1741617499100,0.06055574,121.98,121.95,0.06049922]
[1741617500499,0.06055574,121.98,121.96,8.1994]
[1741617500699,0.06055574,121.98,121.95,0.06049922]
[1741617501412,67.96055574,121.98,121.95,0.06049922]
[1741617501702,56.68603575,121.96,121.95,0.00732297]
[1741617501903,56.68603575,121.96,121.85,4.3463]
[1741617502113,8.2016,121.94,121.88,8.2049]
[1741617502411,8.183,121.97,121.86,56.68603575]
[1741617502711,64.86903575,121.97,121.86,56.68603575]
[1741617502903,8.183,121.97,121.85,4.3463]
[1741617503205,128.74183575,121.98,121.85,4.3463]
[1741617503206,0.05729535,121.93,121.92,8.2027]
[1741617503406,3.9694,122.03,121.92,56.68603575]
[1741617503606,8.0073,122.09,121.99,56.68603575]
[1741617503809,71.9579,122.15,122.02,56.68603575]
[1741617504006,6.01893691,122.14,122.02,56.68603575]
[1741617504201,60.65543575,122.14,122.02,56.68603575]
[1741617504603,0.05776459,122.09,122.07,0.05925242]
[1741617505118,60.65543575,122.14,122.07,0.05925242]
[1741617505305,56.73808596,122.09,122.07,0.05925242]
[1741617505510,67.76,122.08,121.96,56.68603575]
[1741617505807,67.76,122.08,121.98,56.68603575]
[1741617506319,342.1294,122.14,122.01,56.68603575]
[1741617506606,342.1294,122.14,122.02,62.0]
[1741617506810,67.78,122.16,122.06,56.68603575]
[1741617507006,4.2589,122.17,122.06,56.73983385]
[1741617507199,4.2589,122.17,122.07,4.1723]
[1741617507910,4.2667,122.21,122.09,56.68603575]
[1741617508104,270.46,122.25,122.1,124.28603575]
[1741617508305,67.6,122.27,122.15,56.68603575]
[1741617508505,67.6,122.27,122.18,56.68603575]
[1741617508907,67.6,122.27,122.2,0.06195379]
[1741617509914,8.1832,122.21,122.2,5.379e-05]
[1741617510114,132.26923575,122.21,122.2,5.379e-05]
[1741617510315,136.36923575,122.21,122.2,5.379e-05]
[1741617510717,8.1832,122.21,122.2,5.379e-05]
[1741617510915,12.2832,122.21,122.2,5.379e-05]
[1741617511515,8.1832,122.21,122.2,5.379e-05]
[1741617511910,12.2832,122.21,122.2,5.379e-05]
[1741617512113,274.38,122.21,122.08,56.68603575]
[1741617512314,56.68603575,122.19,122.08,56.68603575]
[1741617512513,56.68603575,122.19,122.05,3.995]
[1741617512711,56.68603575,122.16,122.05,3.995]
[1741617512915,67.42,122.15,122.05,3.995]
[1741617513116,67.42,122.15,122.05,65.995]
[1741617513313,0.05956764,122.11,122.09,0.05956148]
[1741617513814,274.5334,122.2,122.07,124.08603575]
[1741617514116,8.1851,122.19,122.1,56.68603575]
[1741617514323,274.5334,122.2,122.1,56.68603575]
[1741617514613,56.68603575,122.22,122.1,56.68603575]
[1741617515012,270.26,122.25,122.13,56.68603575]
[1741617515207,270.26,122.25,122.16,56.68603575]
[1741617515511,0.05850862,122.2,122.18,0.0602506]
[1741617516623,0.05850862,122.2,122.19,62.0]
[1741617516821,8.1801,122.26,122.19,62.0]
[1741617517119,56.68603575,122.27,122.19,62.0]
[1741617517325,56.68603575,122.27,122.18,0.0602506]
[1741617517618,56.68603575,122.28,122.18,0.0602506]
[1741617517823,56.68603575,122.25,122.15,56.68603575]
[1741617518016,56.68603575,122.25,122.14,4.1891]
[1741617518210,56.68603575,122.22,122.14,4.1891]
[1741617518417,56.68603575,122.2,122.09,56.68603575]
[1741617518620,56.68603575,122.2,122.09,60.74683575]
[1741617518820,12.2667,122.21,122.09,60.74683575]
[1741617519023,0.05444764,122.16,122.13,0.05586041]
[1741617519418,270.2,122.23,122.12,56.68603575]
[1741617519725,8.1781,122.29,122.17,56.68603575]
[1741617519916,56.68603575,122.32,122.2,56.68603575]
[1741617520119,56.68603575,122.35,122.23,56.68603575]
[1741617520424,349.6583,122.39,122.26,56.68603575]
[1741617520626,16.3325,122.47,122.27,4.0604]
[1741617520815,56.68603575,122.52,122.29,56.68603575]
[1741617520816,67.08,122.42,122.29,56.68603575]
[1741617521016,270.18,122.44,122.29,56.68603575]
[1741617521017,56.68603575,122.44,122.33,56.68603575]
[1741617521219,7.9866,122.45,122.34,4.0604]
[1741617521412,7.9866,122.45,122.35,56.68603575]
[1741617521613,56.68603575,122.43,122.34,4.0604]
[1741617521818,56.68603575,122.39,122.27,326.86603575]
[1741617522019,0.06074706,122.41,122.33,56.68603575]
[1741617522429,131.71263575,122.45,122.33,56.68603575]
[1741617522630,0.0600284,122.38,122.33,56.68603575]
[1741617523133,0.0600284,122.38,122.28,127.66643575]
[1741617523430,0.0600284,122.38,122.34,0.0558212]
[1741617523633,66.88,122.4,122.34,0.0558212]
[1741617523821,56.68603575,122.37,122.34,0.0558212]
[1741617524127,56.73899646,122.37,122.28,4.0604]
[1741617524329,0.05296071,122.37,122.3,56.68603575]
[1741617524522,56.68603575,122.42,122.3,56.68603575]
[1741617524724,67.34,122.44,122.34,56.68603575]
[1741617524924,278.0066,122.45,122.35,4.0012]
[1741617525125,56.68603575,122.44,122.35,4.0012]
[1741617525328,56.68603575,122.42,122.32,8.1754]
[1741617525525,64.85653575,122.4,122.39,3.179e-05]
[1741617525725,56.68603575,122.4,122.31,4.0012]
[1741617526327,56.68603575,122.36,122.27,9.81492421]
[1741617526521,56.68603575,122.36,122.25,270.02]
[1741617526522,56.68603575,122.34,122.26,3.9894]
[1741617526721,56.68603575,122.32,122.2,56.68603575]
[1741617526928,67.64,122.31,122.24,8.1808]
[1741617527124,56.68603575,122.3,122.21,3.9894]
[1741617527325,56.68603575,122.28,122.13,221.31008484]
[1741617527632,56.68603575,122.28,122.13,277.99612059]
[1741617527929,56.68603575,122.23,122.13,221.31008484]
[1741617528133,8.1841,122.2,122.13,221.31008484]
[1741617528325,56.68603575,122.21,122.13,221.31008484]
[1741617528732,67.8,122.23,122.13,277.99612059]
[1741617529127,67.8,122.23,122.16,8.186]
[1741617529328,0.05999171,122.2,122.17,0.05438121]
[1741617529529,4.0183,122.27,122.19,56.68603575]
[1741617529725,56.68603575,122.33,122.21,56.68603575]
[1741617529925,56.68603575,122.31,122.21,56.68603575]
[1741617530126,56.68603575,122.33,122.19,56.68603575]
[1741617530322,8.1758,122.33,122.23,56.335093]
[1741617530527,56.335093,122.34,122.23,124.255093]
[1741617530735,65.7700641,122.38,122.26,56.335093]
[1741617531034,64.346693,122.38,122.26,56.39169043]
[1741617531223,4.0699,122.38,122.28,56.335093]
[1741617531427,68.758793,122.42,122.3,56.335093]
[1741617531632,8.3238,122.42,122.34,8.174]
[1741617532133,67.8,122.47,122.39,8.1707]
[1741617532333,56.335093,122.49,122.37,0.06098643]
[1741617532334,124.155093,122.49,122.37,0.06098643]
[1741617532632,124.155093,122.49,122.38,8.1714]
[1741617532837,56.335093,122.44,122.32,326.195093]
[1741617533135,56.335093,122.44,122.29,8.5538]
[1741617533136,67.74,122.43,122.35,56.335093]
[1741617533334,67.76,122.47,122.35,56.335093]
[1741617533528,56.335093,122.46,122.35,56.335093]
[1741617533736,0.05373412,122.42,122.4,0.05711232]
[1741617534034,0.05373412,122.42,122.29,8.5538]
[1741617534035,67.68,122.41,122.29,8.5538]
[1741617534237,67.68,122.41,122.34,8.174]
[1741617534432,67.68,122.41,122.32,56.335093]
[1741617534928,67.68,122.41,122.34,8.1744]
[1741617535129,67.68,122.41,122.32,56.335093]
[1741617535325,0.05311646,122.39,122.36,0.05818793]
[1741617536133,0.05311646,122.39,122.3,4.3726]
[1741617536337,56.335093,122.38,122.26,56.335093]
[1741617536532,56.335093,122.38,122.28,8.1784]
[1741617536736,56.335093,122.38,122.26,56.335093]
[1741617536939,56.335093,122.36,122.25,4.1177]
[1741617537134,67.18,122.36,122.26,118.335093]
[1741617537335,67.18,122.36,122.26,56.335093]
[1741617537535,0.05556416,122.32,122.29,0.0603783]
[1741617538829,8.1772,122.3,122.29,0.0603783]
[1741617539231,0.05556416,122.32,122.29,0.0603783]
[1741617539430,66.92,122.31,122.2,56.335093]
[1741617539643,56.335093,122.28,122.19,4.2446]
[1741617539839,56.335093,122.26,122.19,4.2446]
[1741617540045,123.335093,122.26,122.17,132.89712929]
[1741617540346,56.335093,122.24,122.17,132.89712929]
[1741617540530,56.335093,122.22,122.17,132.89712929]
[1741617540736,0.05655001,122.22,122.19,0.05440144]
[1741617540935,8.1839,122.2,122.19,0.05440144]
[1741617541234,0.05655001,122.22,122.19,0.05440144]
[1741617541435,8.1839,122.2,122.19,0.05440144]
[1741617541839,67.14,122.2,122.17,132.89712929]
[1741617542041,56.335093,122.18,122.16,221.31008484]
[1741617542235,56.335093,122.18,122.16,202.19788484]
[1741617542443,56.52399009,122.17,122.15,258.35031831]
[1741617542738,8.1866,122.16,122.15,104.24564878]
[1741617543048,8.1893,122.12,122.11,64.8655038]
[1741617543235,56.57569664,122.17,122.11,64.8655038]
[1741617543432,56.52399009,122.21,122.11,64.8655038]
[1741617543743,56.52399009,122.19,122.11,64.8655038]
[1741617543936,123.72399009,122.19,122.11,64.8655038]
[1741617544137,67.2,122.19,122.07,60.86869009]
[1741617544346,0.05246687,122.16,122.14,0.05612702]
[1741617544745,56.52399009,122.26,122.14,56.58011711]
[1741617545044,56.52399009,122.22,122.14,0.05612702]
[1741617545245,56.52399009,122.22,122.1,123.96399009]
[1741617545442,56.52399009,122.23,122.1,123.96399009]
[1741617545633,69.42,122.25,122.13,56.52399009]
[1741617545834,56.52399009,122.23,122.1,123.96399009]
[1741617546142,0.05589319,122.18,122.15,0.06096871]
[1741617546347,904.79465332,122.21,122.15,56.5849588]
[1741617546534,869.42491672,122.21,122.2,8.1839]
[1741617546738,809.71975332,122.21,122.18,118.52399009]
[1741617547139,809.71975332,122.21,122.15,56.52399009]
[1741617547344,70.02,122.2,122.12,56.52399009]
[1741617547548,0.05868146,122.19,122.12,56.52399009]
[1741617547744,0.05868146,122.19,122.09,56.52399009]
[1741617548043,498.58605613,122.2,122.07,56.52399009]
[1741617548236,56.52399009,122.17,122.04,56.52399009]
[1741617548448,8.1894,122.12,122.04,56.52399009]
[1741617548647,70.08,122.11,122.01,56.52399009]
[1741617548843,0.05542758,122.09,122.07,0.05766235]
[1741617549947,70.16,122.17,122.07,56.58165244]
[1741617550146,296.39485797,122.2,122.1,56.52399009]
[1741617550744,8.1848,122.19,122.11,8.1894]
[1741617550943,56.52399009,122.19,122.05,270.1]
[1741617551147,56.58668185,122.16,122.04,56.52399009]
[1741617551345,56.52399009,122.13,122.02,56.52399009]
[1741617551652,340.26,122.15,122.02,56.52399009]
[1741617551852,340.26,122.15,122.01,4.065]
[1741617552248,340.26,122.15,122.04,56.52399009]
[1741617552452,70.08,122.18,122.07,56.57657675]
[1741617552653,70.08,122.18,122.08,4.065]
[1741617552846,126.60399009,122.18,122.08,4.065]
[1741617553046,70.08,122.18,122.08,4.065]
[1741617553247,70.08,122.18,122.1,56.52399009]
[1741617553451,70.08,122.18,122.13,8.1885]
[1741617553647,70.08,122.18,122.1,56.52399009]
[1741617553848,0.05821932,122.15,122.13,0.05642597]
[1741617554046,0.05821932,122.15,122.08,8.1388]
[1741617554246,0.05821932,122.15,122.09,56.52399009]
[1741617555351,0.05821932,122.15,122.11,0.05689724]
[1741617555950,0.05821932,122.15,122.14,8.1879]
[1741617556150,296.39485797,122.2,122.12,126.32399009]
[1741617556360,296.39485797,122.2,122.17,56.52399009]
[1741617556541,296.39485797,122.2,122.14,56.52399009]
[1741617556743,366.19485797,122.2,122.1,56.52399009]
[1741617556948,422.71884806,122.2,122.1,56.52399009]
[1741617557356,0.05214906,122.16,122.14,0.05580262]
[1741617558161,126.14399009,122.15,122.04,56.52399009]
[1741617559054,69.34,122.16,122.04,56.52399009]
[1741617559254,8.332e-05,122.11,122.1,64.71459009]
[1741617559449,118.55794319,122.2,122.1,56.52399009]
[1741617559645,118.55794319,122.2,122.13,56.52399009]
[1741617560050,118.55794319,122.2,122.1,248.52399009]
[1741617560254,118.55794319,122.2,122.1,56.52399009]
[1741617560459,187.83794319,122.2,122.1,56.52399009]
[1741617560653,0.05365011,122.16,122.14,0.05934911]
[1741617561358,118.55794319,122.2,122.15,8.1873]
[1741617561560,118.55794319,122.2,122.14,0.05934911]
[1741617561749,8.1872,122.16,122.14,0.05934911]
[1741617561949,175.08193328,122.2,122.14,0.05934911]
[1741617562458,8.1862,122.17,122.14,0.05934911]
[1741617562760,0.06205397,122.18,122.09,12.4428]
[1741617562953,0.06205397,122.18,122.06,69.08]
[1741617562954,8.1888,122.13,122.06,69.08]
[1741617563260,56.52399009,122.17,122.12,0.05717778]
[1741617563462,8.1864,122.17,122.06,69.08]
[1741617563760,4.3725,122.18,122.13,0.06195899]
[1741617564056,1.42500307,122.24,122.15,56.52399009]
[1741617564256,68.8,122.26,122.14,0.05949378]
[1741617564446,68.8,122.26,122.13,60.81199009]
[1741617564447,56.52399009,122.24,122.13,4.288]
[1741617564854,56.52399009,122.2,122.07,56.52399009]
[1741617565160,129.71649009,122.19,122.07,56.52399009]
[1741617565368,0.0519508,122.15,122.12,0.05827671]
[1741617565557,8.1911,122.1,122.06,4.288]
[1741617565756,56.52399009,122.13,122.03,8.193]
[1741617565958,56.52399009,122.11,122.0,4.3077]
[1741617566260,8.1941,122.05,122.0,4.3077]
[1741617566464,68.7,122.08,122.0,4.3077]
[1741617566960,0.05526013,122.05,122.03,0.06160076]
[1741617568263,0.05526013,122.05,122.0,4.3077]
[1741617568658,0.05526013,122.05,122.0,60.83169009]
[1741617569058,0.05526013,122.05,122.0,4.3077]
[1741617569466,0.05526013,122.05,122.01,0.05709522]
[1741617570963,8.1954,122.03,122.01,0.05709522]
[1741617571264,0.05526013,122.05,122.01,0.05709522]
[1741617572365,56.52399009,122.03,121.94,4.0925]
[1741617572558,56.52399009,122.03,121.96,8.2]
[1741617572753,3.9791,122.04,121.94,4.0925]
[1741617573154,56.52399009,122.03,121.94,4.0925]
[1741617573362,56.52399009,122.01,121.9,60.52399009]
[1741617573562,0.05707105,122.0,121.91,4.316]
[1741617573762,56.52399009,122.01,121.91,4.316]
[1741617574160,8.1982,121.99,121.94,8.201]
[1741617574468,67.64,122.02,121.91,66.316]
[1741617575065,0.05831394,121.96,121.94,0.05556028]
[1741617575462,3.9791,122.04,121.94,56.52399009]
[1741617575965,56.52399009,122.03,121.93,67.2]
[1741617576166,3.9791,122.04,121.93,67.2]
[1741617576461,8.1944,122.05,121.95,56.52399009]
[1741617576661,0.05391688,122.0,121.97,0.06288874]
[1741617576857,270.26,122.06,121.95,56.52399009]
[1741617577167,66.98,122.1,121.99,56.52399009]
[1741617577360,66.98,122.1,122.0,4.34]
[1741617577562,66.98,122.1,122.02,8.1956]
[1741617577763,56.52399009,122.09,122.0,4.34]
[1741617578466,0.05372029,122.06,122.03,0.05766153]
[1741617578664,8.1944,122.05,122.03,0.05766153]
[1741617578863,0.05372029,122.06,122.03,0.05766153]
[1741617579269,8.1946,122.04,122.03,0.05766153]
[1741617579565,0.05372029,122.06,122.03,0.05766153]
[1741617580164,8.1946,122.04,122.03,6.153e-05]
[1741617580377,383.42798018,122.04,121.91,4.2556]
[1741617580564,56.52399009,122.01,121.91,8.2213]
[1741617581364,56.52399009,122.03,121.91,8.2213]
[1741617581569,0.05834179,121.97,121.95,0.06193451]
[1741617581765,0.05834179,121.97,121.96,8.1998]
[1741617582072,0.05784944,121.98,121.95,0.0610914]
[1741617582373,274.3588,122.04,121.93,62.0]
[1741617582562,0.06074418,121.98,121.95,0.05436655]
[1741617582957,123.06399009,121.99,121.91,3.9657]
[1741617583476,66.54,121.99,121.91,60.48969009]
[1741617583662,123.00399009,122.03,121.91,60.48969009]
[1741617584064,0.05523407,121.98,121.96,0.05213098]
[1741617584363,123.00399009,122.03,121.96,0.05213098]
[1741617584568,0.05768981,121.98,121.96,0.05213098]
[1741617584763,66.48,122.03,121.96,0.05213098]
[1741617584963,123.00399009,122.03,121.96,0.05213098]
[1741617585273,66.48,122.03,121.96,0.05213098]
[1741617585471,0.05711862,122.01,121.96,0.05213098]
[1741617586468,8.1992,121.98,121.96,0.05213098]
[1741617586670,0.05711862,122.01,121.96,0.05213098]
[1741617586870,123.00399009,122.03,121.96,0.05213098]
[1741617587066,8.1991,121.98,121.96,0.05213098]
[1741617587474,0.05336412,122.0,121.96,0.05213098]
[1741617588671,8.25096412,122.0,121.97,8.1992]
[1741617588874,0.05336412,122.0,121.96,0.05213098]
[1741617590174,8.1993,121.97,121.96,0.05213098]
[1741617590369,0.05336412,122.0,121.96,0.05213098]
[1741617590770,65.48,121.99,121.91,3.9657]
[1741617590966,56.52399009,121.98,121.91,3.9657]
[1741617591178,56.52399009,121.98,121.9,4.0]
[1741617591769,65.48,121.99,121.9,4.0]
[1741617591970,0.05639567,121.95,121.93,0.0516337]
[1741617593480,8.2014,121.94,121.93,0.0516337]
[1741617593680,0.05639567,121.95,121.93,0.0516337]
[1741617593881,8.2014,121.94,121.9,4.0]
[1741617594083,56.52399009,121.93,121.9,4.0]
[1741617594575,56.52399009,121.93,121.81,69.12079009]
[1741617595078,0.05402754,121.88,121.81,69.12079009]
[1741617595769,0.05402754,121.88,121.82,65.06]
[1741617596081,65.26,121.94,121.83,56.52399009]
[1741617596280,121.78399009,121.94,121.84,62.0]
[1741617596482,121.78399009,121.94,121.87,8.2061]
[1741617596982,56.52399009,121.92,121.81,12.5968]
[1741617597379,0.05494783,121.88,121.85,0.06173561]
[1741617598171,65.18,121.94,121.85,0.06173561]
[1741617598573,65.18,121.94,121.83,121.66399009]
[1741617599181,0.05422912,121.9,121.87,0.05590878]
[1741617600478,64.82,121.89,121.81,4.1111]
[1741617600884,121.34399009,121.89,121.81,4.1111]
[1741617601183,64.82,121.89,121.81,4.1111]
[1741617601375,270.5,121.96,121.83,56.52399009]
[1741617601376,121.34399009,121.94,121.83,56.52399009]
[1741617601575,121.34399009,121.94,121.81,60.63509009]
[1741617601882,121.34399009,121.94,121.84,0.05554503]
[1741617602083,4.0784,121.95,121.85,56.52399009]
[1741617602585,327.02399009,121.96,121.85,56.52399009]
[1741617602784,56.52399009,121.92,121.82,192.0]
[1741617603084,56.52399009,121.9,121.77,56.52399009]
[1741617603287,56.52399009,121.9,121.78,65.944]
[1741617603583,327.12399009,121.89,121.78,65.944]
[1741617603782,56.52399009,121.87,121.78,3.944]
[1741617603982,4.2274,121.88,121.79,56.52399009]
[1741617604284,0.05227349,121.84,121.74,248.52399009]
[1741617604490,64.76,121.83,121.72,56.52399009]
[1741617604684,56.52399009,121.82,121.71,12.128]
[1741617604895,56.52399009,121.82,121.69,325.38437821]
[1741617604896,56.52399009,121.78,121.69,133.38437821]
[1741617605081,64.88,121.77,121.69,133.38437821]
[1741617605283,56.52399009,121.81,121.69,133.38437821]
[1741617605483,4.1552,121.84,121.74,56.52399009]
[1741617606088,4.1552,121.84,121.7,335.46]
[1741617606089,0.06207479,121.8,121.75,4.1264]
[1741617606486,0.06207479,121.8,121.71,56.52399009]
[1741617606792,121.16399009,121.81,121.75,8.214]
[1741617606989,64.64,121.81,121.72,118.52399009]
[1741617607184,1.715e-05,121.77,121.75,56.52399009]
[1741617607381,4.198,121.88,121.76,56.52399009]
[1741617607592,4.198,121.88,121.78,56.52399009]
[1741617607790,56.52399009,121.92,121.8,56.52399009]
[1741617608091,56.52399009,121.9,121.81,4.1264]
[1741617608491,64.66,121.94,121.84,56.52399009]
[1741617608693,0.06252122,121.87,121.84,0.05672428]
[1741617608887,56.52399009,121.92,121.82,64.48539009]
[1741617609092,0.05892016,121.87,121.84,0.05364169]
[1741617609289,56.52399009,121.87,121.71,270.72]
[1741617609485,56.52399009,121.83,121.74,5.7209454]
[1741617609682,56.52399009,121.81,121.75,1.64271047]
[1741617609887,64.76,121.82,121.79,0.05751647]
[1741617609888,121.28399009,121.82,121.79,0.05751647]
[1741617610286,121.3382932,121.82,121.79,0.05751647]
[1741617610488,8.2108,121.8,121.79,0.05751647]
[1741617610993,121.3382932,121.82,121.79,0.05751647]
[1741617611193,0.05430311,121.82,121.79,0.05751647]
[1741617613499,56.52399009,121.81,121.72,62.0]
[1741617613693,56.52399009,121.81,121.71,4.0781]
[1741617613694,56.52399009,121.79,121.71,4.0781]
[1741617613893,56.52399009,121.79,121.72,8.2157]
[1741617614198,64.3,121.8,121.71,4.0781]
[1741617614699,0.05252973,121.77,121.71,4.0781]
[1741617615195,0.05252973,121.77,121.67,270.72]
[1741617615393,56.52399009,121.75,121.67,4.1898]
[1741617615597,56.52399009,121.71,121.63,4.1898]
[1741617615992,56.52399009,121.67,121.56,327.26399009]
[1741617616191,120.38399009,121.67,121.57,4.1898]
[1741617616592,0.06267127,121.63,121.57,4.1898]
[1741617616790,0.06267127,121.63,121.54,7.9379]
[1741617616997,8.2248,121.6,121.57,135.08716447]
[1741617617197,63.74,121.62,121.57,135.08716447]
[1741617617395,0.05739094,121.6,121.57,135.08716447]
[1741617617593,8.225,121.59,121.57,135.08716447]
[1741617617796,0.05739094,121.6,121.57,135.08716447]
[1741617617997,56.52399009,121.59,121.57,64.17170674]
[1741617618501,8.2256,121.58,121.57,51.08550674]
[1741617618800,8.2256,121.58,121.57,44.51740674]